bitfinex/quotes_SOLUSD_20251013
["timestamp","ask_amount","ask_price","bid_price","bid_amount"]
[1760350771678,0.10275923,196.34,196.33,20.53441796]
[1760350771881,0.10275923,196.34,196.33,100.93441796]
[1760350772081,0.10275923,196.34,196.33,10.87647521]
[1760350772280,0.10275923,196.34,196.33,21.24441796]
[1760350773208,0.10275923,196.34,196.33,26.33788304]
[1760350775384,0.10275923,196.34,196.33,25.62788304]
[1760350775567,0.2086258,196.34,196.33,25.62788304]
[1760350775993,0.2086258,196.34,196.33,10.87647521]
[1760350776499,0.2086258,196.34,196.33,25.62788304]
[1760350777382,0.10586657,196.34,196.33,26.33788304]
[1760350777586,0.10586657,196.34,196.33,25.62788304]
[1760350777969,0.10586657,196.34,196.33,26.33788304]
[1760350781093,0.10586657,196.34,196.33,15.96994029]
[1760350781392,0.10586657,196.34,196.33,25.62788304]
[1760350781573,0.10586657,196.34,196.31,25.89382625]
[1760350781773,0.10586657,196.34,196.32,20.53441796]
[1760350781987,0.10586657,196.34,196.33,9.65794275]
[1760350782197,0.10586657,196.34,196.33,20.53441796]
[1760350782781,0.10586657,196.34,196.33,21.24441796]
[1760350783188,0.10586657,196.34,196.33,26.33788304]
[1760350783980,0.10586657,196.34,196.33,16.67994029]
[1760350784183,0.10586657,196.34,196.33,26.33788304]
[1760350784900,0.79586657,196.34,196.3,9.65794275]
[1760350785103,0.68,196.33,196.3,10.87647521]
[1760350785277,9.65794275,196.31,196.24,5.5]
[1760350785483,10.33794275,196.31,196.25,14.75345908]
[1760350785787,10.33794275,196.31,196.26,10.87647521]
[1760350786205,0.68,196.3,196.26,10.87647521]
[1760350786808,10.33794275,196.29,196.26,10.87647521]
[1760350787014,0.68,196.28,196.26,10.87647521]
[1760350787578,10.33794275,196.31,196.26,10.87647521]
[1760350787902,0.68,196.33,196.28,20.53441796]
[1760350788105,0.68,196.32,196.28,20.53441796]
[1760350788609,0.10586657,196.34,196.31,20.53441796]
[1760350788808,0.10586657,196.34,196.32,9.65794275]
[1760350789006,0.10586657,196.34,196.33,20.53441796]
[1760350789308,0.10586657,196.34,196.33,21.23441796]
[1760350789793,0.78586657,196.34,196.33,10.87647521]
[1760350790100,0.10586657,196.34,196.33,10.87647521]
[1760350790300,0.10586657,196.34,196.29,0.7]
[1760350790301,0.10586657,196.34,196.25,2.0419102]
[1760350790506,10.44380932,196.34,196.28,10.87647521]
[1760350790682,10.44380932,196.34,196.28,20.53441796]
[1760350790882,15.53705433,196.34,196.28,25.62907]
[1760350791089,10.44380932,196.34,196.28,25.62907]
[1760350791697,14.85714634,196.34,196.28,10.87647521]
[1760350791898,9.65794275,196.32,196.26,20.53441796]
[1760350792101,10.33794275,196.31,196.25,10.87647521]
[1760350792410,17.93221774,196.34,196.25,10.87647521]
[1760350792411,10.33794275,196.3,196.25,10.87647521]
[1760350792589,0.68,196.29,196.25,10.87647521]
[1760350792785,0.68,196.28,196.23,10.87647521]
[1760350793092,0.68,196.3,196.24,0.7]
[1760350793321,10.33794275,196.3,196.24,10.35794275]
[1760350793494,15.43226429,196.3,196.24,10.35794275]
[1760350793810,15.43226429,196.3,196.24,9.65794275]
[1760350794586,15.43226429,196.3,196.25,5.0955414]
[1760350795106,0.68,196.29,196.25,5.0955414]
[1760350795295,5.09352263,196.33,196.25,5.0955414]
[1760350795495,0.10344371,196.27,196.26,10.87647521]
[1760350796603,0.10344371,196.27,196.26,15.97175697]
[1760350797115,0.10344371,196.27,196.26,10.87647521]
[1760350797706,0.10344371,196.27,196.26,15.97175697]
[1760350798814,0.10344371,196.27,196.26,26.32969972]
[1760350800908,0.09852854,196.29,196.26,39.06790414]
[1760350801109,0.09852854,196.29,196.28,41.33441796]
[1760350801513,0.09852854,196.29,196.28,42.03441796]
[1760350801720,0.09852854,196.29,196.28,31.67647521]
[1760350802023,0.09852854,196.29,196.28,41.33441796]
[1760350802229,0.09852854,196.29,196.28,42.03441796]
[1760350803029,0.09852854,196.29,196.28,47.12918054]
[1760350803899,0.10890932,196.31,196.29,10.87647521]
[1760350804105,0.10890932,196.31,196.3,20.53441796]
[1760350804300,0.10890932,196.31,196.3,235.73441796]
[1760350804899,0.10890932,196.31,196.3,240.82866146]
[1760350805322,1e-08,196.31,196.3,240.82866146]
[1760350807321,1e-08,196.32,196.3,240.82866146]
[1760350807622,0.11166305,196.34,196.33,31.67647521]
[1760350807917,0.11166305,196.34,196.33,255.83441796]
[1760350808221,0.11166305,196.34,196.33,256.53441796]
[1760350808801,0.11166305,196.34,196.33,261.62788304]
[1760350809600,0.11166305,196.34,196.33,260.92788304]
[1760350809800,0.11166305,196.34,196.33,261.62788304]
[1760350810325,0.79166305,196.34,196.33,225.37647521]
[1760350810619,0.79166305,196.34,196.33,96.36994029]
[1760350811630,0.79166305,196.34,196.33,85.49346508]
[1760350811814,0.11166305,196.34,196.33,96.36994029]
[1760350811999,0.11166305,196.34,196.33,106.02788304]
[1760350812200,0.11166305,196.34,196.33,106.72788304]
[1760350813009,0.11166305,196.34,196.33,96.36994029]
[1760350813327,0.11166305,196.34,196.33,106.72788304]
[1760350814527,0.68,196.38,196.37,10.87647521]
[1760350814827,14.74910202,196.42,196.37,91.0686098]
[1760350815030,0.68,196.41,196.37,91.0686098]
[1760350815338,4.90229503,196.51,196.38,10.87647521]
[1760350815525,0.10331095,196.42,196.41,9.65794275]
[1760350815852,0.10331095,196.42,196.41,20.53441796]
[1760350816618,0.10331095,196.42,196.41,26.32580841]
[1760350817219,0.09358796,196.43,196.42,31.67647521]
[1760350817432,0.09358796,196.43,196.42,42.03441796]
[1760350818114,0.10264208,196.44,196.43,20.8]
[1760350818319,0.10264208,196.44,196.43,31.67647521]
[1760350818628,0.10264208,196.44,196.43,42.03441796]
[1760350818826,0.10264208,196.44,196.43,37.46734727]
[1760350819025,0.10264208,196.44,196.43,46.42529002]
[1760350819522,0.10264208,196.44,196.43,47.12529002]
[1760350820515,0.79264208,196.44,196.43,36.76734727]
[1760350820719,0.79264208,196.44,196.43,15.96734727]
[1760350821238,0.10264208,196.44,196.43,46.42529002]
[1760350821444,0.10264208,196.44,196.43,47.12529002]
[1760350821746,0.09623136,196.45,196.44,31.67647521]
[1760350822038,0.09623136,196.45,196.44,42.03441796]
[1760350822815,0.09623136,196.45,196.44,47.12503086]
[1760350825546,0.09623136,196.45,196.44,36.76708811]
[1760350825746,0.09623136,196.45,196.44,46.42503086]
[1760350826051,0.09623136,196.45,196.44,36.76708811]
[1760350826245,0.09623136,196.45,196.44,46.42503086]
[1760350826629,0.09623136,196.45,196.44,36.76708811]
[1760350826831,0.09623136,196.45,196.44,46.42503086]
[1760350827422,0.09623136,196.45,196.44,43.23928756]
[1760350828741,0.09623136,196.45,196.44,43.93928756]
[1760350828949,0.09246084,196.47,196.46,31.67647521]
[1760350829139,1e-08,196.47,196.46,38.14867466]
[1760350829334,1e-08,196.47,196.46,38.84867466]
[1760350830340,1e-08,196.47,196.46,37.46656988]
[1760350830535,1e-08,196.47,196.46,43.23876933]
[1760350830739,1e-08,196.47,196.46,36.76656988]
[1760350830926,1e-08,196.47,196.46,43.23876933]
[1760350831254,0.69000001,196.47,196.43,10.87647521]
[1760350831439,0.69,196.46,196.4,6.47219945]
[1760350831637,0.69,196.45,196.42,10.87647521]
[1760350831846,6.47219946,196.47,196.42,10.87647521]
[1760350832037,0.69,196.44,196.42,10.87647521]
[1760350832453,0.69,196.43,196.4,15.96791883]
[1760350832758,0.69,196.42,196.4,22.44011828]
[1760350832947,0.69,196.42,196.4,15.96791883]
[1760350833128,0.69,196.41,196.37,17.34867466]
[1760350833551,0.69,196.41,196.37,10.87647521]
[1760350833851,0.69,196.4,196.37,22.44110222]
[1760350834539,0.69,196.4,196.39,10.87647521]
[1760350835262,0.69,196.4,196.38,10.87647521]
[1760350835557,0.78347816,196.4,196.38,17.34867466]
[1760350835733,0.09347816,196.4,196.39,7.17219945]
[1760350836849,0.09347816,196.4,196.39,5.09190895]
[1760350837155,0.78347816,196.4,196.38,15.96859254]
[1760350837547,0.09347816,196.4,196.38,10.87647521]
[1760350837752,0.69,196.39,196.38,10.87647521]
[1760350838858,0.09347816,196.4,196.38,15.96863009]
[1760350839541,0.78347816,196.4,196.38,15.96863009]
[1760350839865,0.78347816,196.4,196.38,10.87647521]
[1760350840052,0.09347816,196.4,196.38,15.96861833]
[1760350840256,0.09347816,196.4,196.38,22.44081778]
[1760350840437,0.09347816,196.4,196.38,15.96861833]
[1760350841862,0.78347816,196.4,196.38,15.96861833]
[1760350842867,0.78347816,196.4,196.38,5.09214312]
[1760350843679,0.78347816,196.4,196.38,10.87647521]
[1760350845470,0.09347816,196.4,196.38,10.87647521]
[1760350845653,0.09347816,196.4,196.38,22.4408402]
[1760350845837,0.09347816,196.4,196.39,10.87647521]
[1760350846334,0.75347816,196.4,196.33,12.73329941]
[1760350846538,0.66,196.39,196.35,17.34867466]
[1760350847465,0.69,196.39,196.35,10.87647521]
[1760350847652,0.69,196.39,196.31,11.56614958]
[1760350847653,7.16219945,196.38,196.31,11.56614958]
[1760350847850,7.16219945,196.37,196.32,10.87647521]
[1760350848048,0.69,196.36,196.32,10.87647521]
[1760350848966,7.16219945,196.39,196.34,10.87647521]
[1760350849480,7.16219945,196.38,196.33,10.87647521]
[1760350849642,0.69,196.37,196.33,10.87647521]
[1760350850349,7.16219945,196.37,196.33,15.96993597]
[1760350851171,0.69,196.37,196.33,15.96993597]
[1760350852865,0.69,196.37,196.31,6.47219945]
[1760350852866,0.69,196.36,196.31,5.09384538]
[1760350853038,0.69,196.35,196.32,10.87647521]
[1760350853245,6.47219945,196.33,196.26,10.87647521]
[1760350853438,6.47219945,196.3,196.23,5.87600085]
[1760350853749,11.56678162,196.29,196.24,10.87647521]
[1760350853948,12.25678162,196.29,196.24,15.97217335]
[1760350854251,6.47219945,196.29,196.24,16.65217335]
[1760350854442,11.56648827,196.3,196.26,10.87647521]
[1760350854643,7.16219945,196.3,196.26,10.87647521]
[1760350855067,6.47219945,196.31,196.26,10.87647521]
[1760350855247,0.69,196.31,196.26,10.87647521]
[1760350855441,0.09715713,196.28,196.27,18.02867466]
[1760350855641,0.09715713,196.28,196.27,17.34867466]
[1760350855960,0.09715713,196.28,196.27,15.97149737]
[1760350856346,0.09715713,196.28,196.27,10.87647521]
[1760350856547,0.09715713,196.28,196.27,15.97149737]
[1760350856855,0.09715713,196.28,196.26,10.87647521]
[1760350857771,7.16219945,196.27,196.23,0.1]
[1760350858146,6.47219945,196.24,196.23,0.1]
[1760350858345,6.47219945,196.25,196.23,0.1]
[1760350858568,6.47219945,196.27,196.23,0.78]
[1760350858874,11.66417972,196.28,196.23,5.87598007]
[1760350859053,0.09715713,196.28,196.24,5.77580105]
[1760350859259,0.09715713,196.28,196.27,6.47219945]
[1760350859665,0.09715713,196.28,196.27,0.68]
[1760350859870,0.09715713,196.28,196.27,16.65149737]
[1760350860052,0.09715713,196.28,196.27,23.12369682]
[1760350860452,0.09715713,196.28,196.27,16.65149737]
[1760350860899,0.09715713,196.28,196.27,23.12369682]
[1760350863178,0.09715713,196.28,196.27,15.97149737]
[1760350863347,0.78715713,196.28,196.23,21.58]
[1760350863553,0.69,196.27,196.24,5.09575271]
[1760350863864,0.69,196.27,196.23,11.66824043]
[1760350864060,0.69,196.26,196.23,10.97647521]
[1760350864263,7.16219945,196.25,196.23,80.5]
[1760350864468,0.69,196.24,196.23,80.5]
[1760350864681,0.69,196.24,196.23,0.1]
[1760350865367,7.16219945,196.24,196.23,0.1]
[1760350867380,12.2580005,196.24,196.23,0.1]
[1760350868675,7.16219945,196.24,196.23,0.1]
[1760350869196,6.47219945,196.25,196.23,0.1]
[1760350869493,5.78530535,196.26,196.23,0.1]
[1760350869494,12.2575048,196.26,196.23,0.1]
[1760350869793,0.69,196.25,196.23,0.1]
[1760350870187,7.16219945,196.25,196.23,0.1]
[1760350870895,0.69,196.25,196.23,0.1]
[1760350871094,20.89715713,196.28,196.23,7.25219945]
[1760350871292,0.69,196.27,196.23,86.97219945]
[1760350871798,7.16219945,196.26,196.23,0.1]
[1760350871996,6.47219945,196.24,196.23,0.1]
[1760350872990,11.5680005,196.24,196.23,0.1]
[1760350873897,12.2580005,196.24,196.23,0.1]
[1760350874206,11.5680005,196.24,196.23,0.1]
[1760350874573,12.2580005,196.24,196.23,0.1]
[1760350875100,11.5680005,196.24,196.23,0.1]
[1760350875624,12.36258568,196.24,196.23,0.1]
[1760350878924,12.36258568,196.24,196.23,1e-08]
[1760350879078,20.8,196.2,196.19,0.1]
[1760350879404,27.27219945,196.2,196.19,0.1]
[1760350879601,33.0290394,196.2,196.19,0.1]
[1760350880706,32.3690394,196.2,196.19,0.1]
[1760350881293,33.0290394,196.2,196.19,0.1]
[1760350882483,39.50123885,196.2,196.19,0.1]
[1760350882691,20.8,196.16,196.12,5.5]
[1760350882990,6.47219945,196.13,196.08,0.7]
[1760350883199,6.47219945,196.1,196.08,0.7]
[1760350884003,20.8,196.17,196.09,0.7]
[1760350884194,6.47219945,196.15,196.09,12.2716401]
[1760350884504,11.57035069,196.15,196.1,0.7]
[1760350884708,11.57035069,196.15,196.11,0.7]
[1760350885018,20.8,196.17,196.12,0.7]
[1760350885019,5.09783472,196.17,196.12,0.7]
[1760350885187,6.47219945,196.16,196.13,0.7]
[1760350885807,6.47219945,196.16,196.11,0.7]
[1760350886105,6.47219945,196.16,196.12,0.7]
[1760350886308,6.47219945,196.14,196.09,0.7]
[1760350886607,6.47219945,196.12,196.07,0.7]
[1760350886780,38.64283004,196.16,196.08,0.7]
[1760350886993,6.47219945,196.14,196.08,7.17219945]
[1760350887302,6.47219945,196.14,196.09,0.7]
[1760350887484,9.67703008,196.14,196.1,0.7]
[1760350887681,9.67703008,196.14,196.11,0.7]
[1760350888312,14.77543297,196.14,196.11,0.7]
[1760350888611,9.67703008,196.13,196.09,5.79961409]
[1760350888803,9.67703008,196.13,196.1,0.7]
[1760350889004,9.67703008,196.11,196.04,0.8]
[1760350889310,9.67703008,196.07,196.04,0.8]
[1760350890495,9.67703008,196.05,196.04,0.1]
[1760350891211,10.33703008,196.05,196.04,0.1]
[1760350892314,15.43776968,196.05,196.04,0.1]
[1760350894123,15.43776968,196.05,196.03,0.1]
[1760350894124,10.87647521,196.04,196.03,0.1]
[1760350894290,25.6547653,196.03,196.02,0.1]
[1760350894486,26.3147653,196.03,196.02,0.1]
[1760350895301,5.76126001,196.03,196.02,0.1]
[1760350895507,15.53996358,196.03,196.02,0.1]
[1760350896315,26.41643879,196.03,196.02,1e-08]
[1760350897727,15.53996358,196.03,196.02,1e-08]
[1760350898111,5.8629335,196.03,196.02,1e-08]
[1760350898315,14.87996358,196.03,196.02,1e-08]
[1760350898904,15.53996358,196.03,196.02,1e-08]
[1760350901807,35.53996357,196.03,196.02,1e-08]
[1760350902004,26.41643879,196.03,196.02,1e-08]
[1760350902410,46.41643878,196.03,196.02,1e-08]
[1760350902618,31.67647521,195.99,195.91,0.7]
[1760350902928,20.8,195.92,195.91,0.7]
[1760350903511,25.90412413,195.92,195.91,0.7]
[1760350904519,20.8,195.92,195.91,0.7]
[1760350905131,25.90412413,195.92,195.91,0.7]
[1760350905430,35.58115421,195.92,195.91,0.7]
[1760350906112,35.58115421,195.92,195.87,5.5]
[1760350906325,35.58115421,195.92,195.89,0.67]
[1760350906518,35.58115421,195.92,195.9,0.67]
[1760350907024,9.67703008,195.91,195.9,0.67]
[1760350907223,9.67703008,195.91,195.88,0.68]
[1760350907426,9.67703008,195.91,195.89,0.68]
[1760350907733,10.39703008,195.9,195.84,0.78]
[1760350907934,9.67703008,195.86,195.84,0.78]
[1760350908236,14.78284979,195.86,195.84,0.78]
[1760350909126,14.78284979,195.86,195.85,0.68]
[1760350909509,14.78284979,195.86,195.84,0.1]
[1760350909716,14.78284979,195.86,195.84,0.78]
[1760350909921,9.67703008,195.86,195.84,0.1]
[1760350910123,9.67703008,195.9,195.85,0.68]
[1760350910349,14.78190871,195.9,195.85,0.68]
[1760350910934,14.78190871,195.9,195.86,0.68]
[1760350911343,14.78190871,195.9,195.87,0.68]
[1760350911642,9.67703008,195.9,195.88,0.68]
[1760350912024,14.78177532,195.9,195.88,0.68]
[1760350912226,20.8,195.91,195.89,0.68]
[1760350912447,14.78125461,195.92,195.9,0.68]
[1760350912641,9.67703008,195.91,195.88,0.68]
[1760350912836,9.67703008,195.91,195.89,0.68]
[1760350913041,5.10422453,195.92,195.89,0.68]
[1760350913229,9.67703008,195.93,195.9,0.68]
[1760350913428,30.47703008,195.94,195.91,0.68]
[1760350913623,9.67703008,195.94,195.91,0.68]
[1760350914144,0.72,195.98,195.92,0.68]
[1760350914327,20.8,195.93,195.92,0.68]
[1760350914724,20.8,195.93,195.9,0.68]
[1760350915032,20.8,195.93,195.91,0.68]
[1760350915339,9.67703008,195.98,195.92,10.35703008]
[1760350915538,9.67703008,195.98,195.89,5.10481993]
[1760350915539,0.09375446,195.94,195.93,10.35703008]
[1760350916259,0.09375446,195.94,195.93,0.68]
[1760350917632,0.09375446,195.94,195.93,15.4608937]
[1760350917838,0.09375446,195.94,195.93,0.68]
[1760350918629,0.09375446,195.94,195.91,14.78135806]
[1760350918949,0.09375446,195.94,195.93,10.35703008]
[1760350919347,0.09375446,195.94,195.93,0.68]
[1760350919932,0.09375446,195.94,195.93,10.35703008]
[1760350920130,0.09375446,195.94,195.93,15.4608937]
[1760350920445,0.09375446,195.94,195.93,5.78386362]
[1760350921938,0.09375446,195.94,195.9,0.68]
[1760350922140,0.09375446,195.94,195.91,0.68]
[1760350922348,0.09375446,195.94,195.92,0.68]
[1760350923055,0.09375446,195.94,195.93,0.68]
[1760350924156,0.09375446,195.94,195.93,95.8608937]
[1760350924446,0.09375446,195.94,195.93,106.73736891]
[1760350924958,0.09375446,195.94,195.93,95.8608937]
[1760350925248,0.09943138,195.96,195.94,10.87647521]
[1760350925438,0.09943138,195.96,195.94,11.55647521]
[1760350925749,0.09943138,195.96,195.95,16.65981789]
[1760350926135,0.09943138,195.96,195.95,26.33684797]
[1760350928752,0.09943138,195.96,195.95,16.65981789]
[1760350928931,0.09943138,195.96,195.95,26.33684797]
[1760350930453,0.09943138,195.96,195.92,80.4]
[1760350930636,10.49646146,195.96,195.93,80.4]
[1760350930837,0.09943138,195.96,195.93,80.4]
[1760350931034,0.09943138,195.96,195.94,10.35703008]
[1760350931237,0.09943138,195.96,195.93,9.67703008]
[1760350931558,0.09943138,195.96,195.93,0.68]
[1760350931732,0.09943138,195.96,195.94,5.10360314]
[1760350931934,0.09943138,195.96,195.95,10.35703008]
[1760350932132,0.09943138,195.96,195.94,5.10360314]
[1760350932356,0.09943138,195.96,195.95,21.23350529]
[1760350932537,0.09943138,195.96,195.95,101.63350529]
[1760350933352,0.09943138,195.96,195.95,91.95647521]
[1760350933554,0.09943138,195.96,195.95,101.63350529]
[1760350933757,0.09943138,195.96,195.95,106.73684797]
[1760350935639,0.19223926,195.96,195.95,106.73684797]
[1760350937057,0.20854112,195.97,195.95,240.83684797]
[1760350937267,0.11111156,195.97,195.96,21.23350529]
[1760350937564,1e-08,196.0,195.99,31.67647521]
[1760350937773,1e-08,196.0,195.99,126.85580642]
[1760350938070,1e-08,196.0,195.99,127.53580642]
[1760350938578,0.72,196.13,196.0,10.87647521]
[1760350938782,0.72,196.15,196.03,10.87647521]
[1760350939072,0.72,196.13,196.04,20.55350529]
[1760350939440,0.72,196.13,196.04,21.23350529]
[1760350939644,0.72,196.13,196.05,10.87647521]
[1760350939837,0.2,196.16,196.07,28.72724278]
[1760350940038,0.2,196.16,196.15,9.67703008]
[1760350940261,0.2,196.16,196.15,20.55350529]
[1760350940461,0.2,196.16,196.15,21.23350529]
[1760350941933,0.2,196.16,196.15,15.97461438]
[1760350942166,0.2,196.16,196.15,26.33164446]
[1760350944267,0.2,196.22,196.16,10.87647521]
[1760350944472,0.2,196.22,196.21,20.55350529]
[1760350944866,1e-08,196.22,196.21,21.23350529]
[1760350945060,0.72,196.35,196.25,10.87647521]
[1760350945268,20.8,196.34,196.31,9.67703008]
[1760350945455,0.72,196.34,196.31,9.67703008]
[1760350946352,0.72,196.33,196.28,10.87647521]
[1760350946555,9.67703008,196.31,196.25,20.55350529]
[1760350946760,0.72,196.31,196.26,9.67703008]
[1760350947160,0.72,196.31,196.25,10.87647521]
[1760350947161,0.72,196.3,196.27,9.67703008]
[1760350947365,0.72,196.3,196.27,6.48437146]
[1760350948273,0.72,196.3,196.26,11.57963944]
[1760350948650,0.72,196.3,196.27,6.48437146]
[1760350950467,0.72,196.29,196.24,10.87647521]
[1760350950668,6.48437146,196.3,196.24,15.97221396]
[1760350950669,0.72,196.28,196.24,15.97221396]
[1760350950845,0.72,196.27,196.23,6.48437146]
[1760350951243,0.72,196.27,196.24,6.48437146]
[1760350951449,0.72,196.29,196.24,6.48437146]
[1760350951675,0.72,196.28,196.24,6.48437146]
[1760350951863,12.29809599,196.32,196.27,6.48437146]
[1760350952063,0.72,196.32,196.28,6.48437146]
[1760350952753,20.8,196.34,196.29,6.48437146]
[1760350952975,0.72,196.33,196.29,6.48437146]
[1760350953776,0.72,196.33,196.28,5.77476152]
[1760350954095,0.72,196.33,196.28,12.25913298]
[1760350954270,6.48437146,196.3,196.21,0.68]
[1760350954465,7.20437146,196.3,196.22,10.87647521]
[1760350954660,7.20437146,196.3,196.24,6.48437146]
[1760350955480,0.10035947,196.25,196.24,6.48437146]
[1760350955673,0.10035947,196.25,196.24,10.87647521]
[1760350956357,0.10035947,196.25,196.24,15.97227626]
[1760350956560,0.10035947,196.25,196.24,22.45664772]
[1760350957476,0.10035947,196.25,196.24,23.13664772]
[1760350958275,0.10035947,196.25,196.24,16.65227626]
[1760350958471,0.10035947,196.25,196.24,23.13664772]
[1760350958666,0.10035947,196.25,196.22,10.87647521]
[1760350959579,0.72,196.24,196.2,5.09683995]
[1760350959890,0.10035947,196.25,196.2,11.58121141]
[1760350960186,0.72,196.24,196.2,5.09683995]
[1760350960391,6.58473093,196.25,196.2,6.48437146]
[1760350960566,0.10035947,196.25,196.2,12.26107589]
[1760350960768,0.10035947,196.25,196.21,0.68]
[1760350961067,0.10035947,196.25,196.22,7.16437146]
[1760350961269,0.10035947,196.25,196.23,6.48437146]
[1760350961487,0.10035947,196.25,196.24,6.48437146]
[1760350961691,0.10035947,196.25,196.24,7.16437146]
[1760350961991,0.10035947,196.25,196.24,6.48437146]
[1760350962198,0.10035947,196.25,196.23,17.36084667]
[1760350962377,0.10035947,196.25,196.24,11.58017251]
[1760350962576,0.10035947,196.25,196.24,12.26017251]
[1760350962787,0.10035947,196.25,196.24,5.09580105]
[1760350965575,0.10035947,196.25,196.24,12.24017251]
[1760350966086,0.10035947,196.25,196.24,11.58017251]
[1760350967508,0.10035947,196.25,196.24,0.7]
[1760350968270,0.10035947,196.25,196.24,7.18437146]
[1760350968803,0.10035947,196.25,196.24,23.15664772]
[1760350972211,1e-08,196.28,196.27,31.67647521]
[1760350972375,1e-08,196.28,196.27,38.16084667]
[1760350972575,1e-08,196.28,196.27,38.86084667]
[1760350973379,1e-08,196.28,196.27,43.95586883]
[1760350975483,0.10382048,196.28,196.27,43.95586883]
[1760350975708,0.10382048,196.28,196.27,37.47149737]
[1760350975888,0.10382048,196.28,196.27,43.95586883]
[1760350977411,0.10382047,196.28,196.27,43.95586883]
[1760350977878,0.10382047,196.28,196.27,43.25586883]
[1760350978073,0.10382047,196.28,196.27,43.95586883]
[1760350979597,0.10382047,196.28,196.27,37.47149737]
[1760350979786,0.10382047,196.28,196.27,36.77149737]
[1760350979991,0.10382047,196.28,196.27,43.25586883]
[1760350981024,0.10382047,196.28,196.27,15.97149737]
[1760350981184,0.79382047,196.28,196.27,15.97149737]
[1760350981497,0.10382047,196.28,196.27,22.45586883]
[1760350981700,0.10382047,196.28,196.27,15.97149737]
[1760350981878,0.10382047,196.28,196.27,22.45586883]
[1760350984703,0.10382047,196.28,196.27,23.15586883]
[1760350986205,0.11014475,196.29,196.28,80.29617953]
[1760350986407,0.11014475,196.29,196.28,97.6570262]
[1760350987120,0.11014475,196.29,196.28,102.75178878]
[1760350987812,0.10263612,196.3,196.28,22.45560925]
[1760350988031,1e-08,196.3,196.29,18.06084667]
[1760350988212,1e-08,196.3,196.29,10.87647521]
[1760350988534,1e-08,196.3,196.29,17.36084667]
[1760350988818,1e-08,196.3,196.29,18.06084667]
[1760350989023,1e-08,196.3,196.29,17.36084667]
[1760350989204,1e-08,196.3,196.29,22.4553497]
[1760350989516,1e-08,196.3,196.29,16.67097824]
[1760350989736,1e-08,196.31,196.29,21.85641784]
[1760350989911,1e-08,196.34,196.33,10.87647521]
[1760350990221,0.2,196.4,196.36,31.67647521]
[1760350990431,0.2,196.4,196.36,34.26919501]
[1760350990600,0.2,196.4,196.36,34.96919501]
[1760350991196,1e-08,196.37,196.36,40.06188191]
[1760350991427,1e-08,196.37,196.36,43.94343315]
[1760350994104,1e-08,196.37,196.36,33.06695794]
[1760350994828,0.2,196.4,196.36,33.06695794]
[1760350994829,1e-08,196.4,196.39,31.67647521]
[1760350995023,0.2,196.48,196.44,10.87647521]
[1760350995223,0.2,196.48,196.47,6.47427104]
[1760350995420,0.2,196.48,196.47,17.35074625]
[1760350995601,0.29448706,196.48,196.47,17.35074625]
[1760350996723,0.29448706,196.48,196.47,22.44058184]
[1760350998233,0.29448706,196.48,196.47,11.56410663]
[1760350998735,0.29448706,196.48,196.47,22.44058184]
[1760351003428,0.96448706,196.48,196.45,20.8]
[1760351003726,0.67,196.47,196.46,17.35074625]
[1760351004800,0.67,196.47,196.46,22.44084092]
[1760351006012,0.67,196.47,196.46,11.56436571]
[1760351006212,0.67,196.47,196.46,5.09009467]
[1760351006938,0.67,196.47,196.43,15.96716431]
[1760351007106,0.67,196.46,196.43,22.44143535]
[1760351007423,0.67,196.45,196.43,22.44143535]
[1760351007622,0.67,196.44,196.43,22.44143535]
[1760351007815,0.29448706,196.48,196.43,22.44143535]
[1760351007816,0.67,196.46,196.43,22.44143535]
[1760351008016,0.67,196.45,196.43,22.44143535]
[1760351008228,0.67,196.45,196.44,6.47427104]
[1760351008923,0.67,196.45,196.43,15.96716431]
[1760351008924,0.67,196.45,196.42,5.09113124]
[1760351009128,0.67,196.44,196.42,5.09113124]
[1760351009330,11.56412866,196.47,196.42,5.09113124]
[1760351009631,0.67,196.43,196.42,5.09113124]
[1760351010518,0.67,196.43,196.41,5.09139045]
[1760351010919,0.67,196.43,196.41,14.73633858]
[1760351011509,0.67,196.42,196.4,20.52142334]
[1760351012024,9.64494813,196.46,196.4,20.52142334]
[1760351012230,0.67,196.45,196.4,20.52142334]
[1760351012535,0.67,196.44,196.4,20.52142334]
[1760351012712,0.67,196.43,196.41,5.09139045]
[1760351012912,0.67,196.43,196.41,14.73633858]